bitfinex/quotes_ETHUSD_20230118
["timestamp","ask_amount","ask_price","bid_price","bid_amount"]
[1674044708197,16.6497808,1579.1,1578.6,39.08963569]
[1674044709866,1.19851691,1579.0,1578.6,39.08963569]
[1674044710181,1.195106,1579.0,1578.6,39.08963569]
[1674044711284,1.195106,1579.0,1578.6,42.58963569]
[1674044711594,9.32121515,1579.1,1578.7,10.60558764]
[1674044711767,8.49784181,1579.1,1578.8,12.66768]
[1674044711957,8.49784181,1579.1,1578.8,12.73368]
[1674044715478,0.72994181,1579.1,1578.8,12.73368]
[1674044715674,0.66394181,1579.1,1578.9,7.606798]
[1674044715884,0.66394181,1579.1,1578.9,7.672798]
[1674044717949,0.72994181,1579.2,1578.9,23.45646207]
[1674044718192,8.31814181,1579.3,1578.9,28.39846207]
[1674044718401,8.31814181,1579.3,1579.0,2.83984621]
[1674044718621,7.6542,1579.3,1579.1,12.66544]
[1674044718838,0.066,1579.3,1579.1,22.18078407]
[1674044719030,0.78780084,1579.4,1579.1,22.18078407]
[1674044720473,1.78356649,1579.4,1579.1,22.18078407]
[1674044720683,1.78356649,1579.4,1579.1,25.6953471]
[1674044721840,0.66394181,1579.3,1579.1,25.6953471]
[1674044724934,1.78356649,1579.4,1579.1,25.6953471]
[1674044725256,0.66394181,1579.3,1579.1,25.6953471]
[1674044725407,0.78780084,1579.4,1579.1,25.6953471]
[1674044731716,0.66394181,1579.3,1579.1,0.066]
[1674044731979,1.17901336,1579.3,1579.0,21.41502]
[1674044732192,1.17901336,1579.3,1579.0,15.08197]
[1674044732363,8.50669901,1579.3,1579.0,15.08197]
[1674044732558,8.05762746,1579.3,1579.0,15.08197]
[1674044733402,1.17328043,1579.2,1579.0,15.08197]
[1674044733852,1.17328043,1579.2,1579.0,6.39897]
[1674044734262,0.66394181,1579.2,1579.0,6.39897]
[1674044734468,14.38974746,1579.3,1579.0,6.39897]
[1674044736029,1.17327704,1579.2,1579.0,0.066]
[1674044736398,0.1173277,1579.1,1578.9,22.3358]
[1674044736588,7.06246181,1579.2,1578.9,22.3358]
[1674044737453,13.39498181,1579.2,1578.9,22.3358]
[1674044737668,14.39074746,1579.2,1578.9,19.3358]
[1674044740610,1.17335893,1579.1,1578.9,19.33283114]
[1674044740832,7.50608893,1579.1,1578.9,19.33283114]
[1674044741137,7.06267181,1579.1,1578.9,11.43933114]
[1674044741290,13.39540181,1579.1,1578.9,0.066]
[1674044741501,13.39540181,1579.1,1578.8,3.0]
[1674044741886,1.17329847,1579.0,1578.7,0.066]
[1674044742188,13.83987847,1579.0,1578.7,3.0]
[1674044742395,13.39652181,1579.0,1578.7,3.0]
[1674044742762,7.67318218,1578.9,1578.7,3.0]
[1674044742975,7.73918218,1578.9,1578.7,3.0]
[1674044745086,1.40565218,1578.9,1578.7,3.0]
[1674044745318,7.06311181,1579.0,1578.7,3.0]
[1674044745499,6.39917,1579.0,1578.7,9.33431]
[1674044745711,6.39917,1579.0,1578.7,9.40031]
[1674044750963,6.87437,1579.0,1578.7,9.40031]
[1674044751168,6.87437,1579.0,1578.7,3.066]
[1674044751436,20.20489181,1579.0,1578.7,3.0]
[1674044753735,20.20489181,1579.0,1578.6,19.8228]
[1674044756387,20.20489181,1579.0,1578.6,41.94357407]
[1674044756388,0.066,1579.0,1578.6,41.94357407]
[1674044756579,13.87086181,1579.1,1578.7,4.19435741]
[1674044756770,13.84007122,1579.0,1578.6,26.15751]
[1674044756981,13.39628181,1579.0,1578.6,26.15751]
[1674044757832,19.72950181,1579.0,1578.6,26.15751]
[1674044758188,22.15526746,1579.0,1578.6,19.8228]
[1674044758342,22.15526746,1579.0,1578.6,11.3442]
[1674044758343,6.33392,1578.8,1578.6,11.3442]
[1674044758549,6.39992,1578.8,1578.6,11.3442]
[1674044760474,12.73384,1578.8,1578.6,11.3442]
[1674044764483,12.73384,1578.8,1578.6,11.34076154]
[1674044772563,6.39992,1578.8,1578.6,11.34076154]
[1674044772775,0.066,1578.8,1578.6,11.34076154]
[1674044772998,13.39734181,1578.9,1578.6,11.34076154]
[1674044773245,12.7334,1578.9,1578.6,11.34076154]
[1674044774350,13.39734181,1578.9,1578.6,11.34076154]
[1674044776037,13.39734181,1578.9,1578.6,11.33876154]
[1674044776246,13.39734181,1578.9,1578.6,11.34076154]
[1674044777240,7.50571678,1578.8,1578.6,11.34076154]
[1674044777560,6.40004,1578.8,1578.6,11.34076154]
[1674044778659,0.066,1578.8,1578.6,11.34076154]
[1674044778970,15.11876824,1578.9,1578.6,11.34076154]
[1674044778971,14.39310746,1578.9,1578.6,11.34076154]
[1674044780870,0.72994181,1578.9,1578.6,26.30756758]
[1674044781085,0.66394181,1578.9,1578.6,32.64228758]
[1674044781388,10.28450746,1579.0,1578.6,35.75891165]
[1674044781651,9.80930746,1579.0,1578.6,35.75891165]
[1674044781824,9.80930746,1579.0,1578.7,17.32973807]
[1674044782176,9.80930746,1579.0,1578.7,17.39573807]
[1674044782597,8.81354181,1579.0,1578.7,17.39573807]
[1674044784028,16.14242746,1579.0,1578.7,11.06145807]
[1674044784224,1.16597302,1578.9,1578.7,1.1515269]
[1674044784589,7.49962302,1578.9,1578.7,1.0855269]
[1674044784785,7.06359181,1578.9,1578.7,1.0855269]
[1674044786533,13.39724181,1578.9,1578.7,1.0855269]
[1674044789208,14.39300746,1578.9,1578.7,1.0855269]
[1674044789578,0.66394181,1578.8,1578.7,1.0855269]
[1674044789830,7.49989651,1578.8,1578.7,1.0855269]
[1674044790165,7.06386181,1578.8,1578.7,1.0855269]
[1674044790476,7.56603249,1578.8,1578.7,1.0855269]
[1674044792257,21.22963814,1578.8,1578.7,1.0855269]
[1674044792470,21.23014248,1578.8,1578.7,1.0855269]
[1674044792684,20.23437683,1578.8,1578.7,1.0855269]
[1674044792896,13.90045683,1578.8,1578.7,1.0855269]
[1674044793521,7.56653683,1578.8,1578.7,1.0855269]
[1674044800963,7.89785633,1578.8,1578.7,1.0855269]
[1674044801168,14.23177633,1578.8,1578.7,1.0855269]
[1674044801409,14.89633186,1578.8,1578.7,1.0855269]
[1674044801634,14.89630673,1578.8,1578.7,1.0855269]
[1674044802481,14.23177633,1578.8,1578.7,1.0855269]
[1674044803324,20.56569633,1578.8,1578.7,1.0855269]
[1674044806268,20.06569633,1578.8,1578.7,1.0855269]
[1674044806844,20.06569633,1578.8,1578.7,0.8003269]
[1674044806845,22.63349048,1578.8,1578.7,0.8003269]
[1674044809471,23.96144512,1578.8,1578.7,0.8003269]
[1674044811426,22.30208532,1578.8,1578.7,0.8003269]
[1674044811879,23.96144512,1578.8,1578.7,0.8003269]
[1674044812094,22.63349048,1578.8,1578.7,0.8003269]
[1674044813563,23.96077647,1578.8,1578.7,0.8003269]
[1674044814837,22.30141667,1578.8,1578.7,0.8003269]
[1674044816072,23.29671977,1578.8,1578.7,0.8003269]
[1674044816399,14.87001573,1578.8,1578.7,0.8003269]
[1674044816549,14.20651378,1578.8,1578.7,0.8003269]
[1674044817124,14.87001652,1578.8,1578.7,0.8003269]
[1674044817959,20.54043378,1578.8,1578.7,0.8003269]
[1674044818136,21.97843378,1578.8,1578.7,0.8003269]
[1674044818348,23.30571977,1578.8,1578.7,0.8003269]
[1674044818978,21.74843378,1578.8,1578.7,0.8003269]
[1674044819290,23.07571977,1578.8,1578.7,0.8003269]
[1674044819481,21.74843378,1578.8,1578.7,0.8003269]
[1674044820350,23.73977647,1578.8,1578.7,0.8003269]
[1674044820757,23.07564149,1578.8,1578.7,0.8003269]
[1674044820951,21.7483555,1578.8,1578.7,0.8003269]
[1674044822144,21.2731555,1578.8,1578.7,0.8003269]
[1674044823058,21.60521667,1578.8,1578.7,0.8003269]
[1674044824645,22.60065387,1578.8,1578.7,0.8003269]
[1674044824855,21.60521667,1578.8,1578.7,0.8003269]
[1674044825070,22.81321667,1578.8,1578.7,0.8003269]
[1674044826646,23.80875516,1578.8,1578.7,0.8003269]
[1674044827507,22.81321667,1578.8,1578.7,0.8003269]
[1674044829614,22.81321667,1578.8,1578.7,0.79814379]
[1674044829996,23.80890953,1578.8,1578.7,0.79814379]
[1674044830733,13.73170354,1578.8,1578.7,0.79814379]
[1674044834354,8.06171727,1578.8,1578.7,0.79814379]
[1674044834592,7.06602441,1578.8,1578.7,0.79814379]
[1674044835316,14.39563727,1578.8,1578.7,0.79814379]
[1674044835622,20.06562354,1578.8,1578.7,0.79814379]
[1674044836151,21.27362354,1578.8,1578.7,0.79814379]
[1674044838414,22.60090953,1578.8,1578.7,0.79814379]
[1674044840887,8.60578354,1578.8,1578.7,0.79814379]
[1674044841776,1.56386354,1578.8,1578.7,0.79814379]
[1674044841981,1.49786354,1578.8,1578.7,0.79814379]
[1674044844873,2.16224655,1578.8,1578.7,0.79814379]
[1674044845236,1.49786354,1578.8,1578.7,0.79814379]
[1674044846451,2.1622476,1578.8,1578.7,0.79814379]
[1674044848235,7.83178354,1578.8,1578.7,0.79814379]
[1674044848483,14.56329667,1578.8,1578.7,0.79814379]
[1674044851712,20.89721667,1578.8,1578.7,0.79814379]
[1674044852457,22.55657647,1578.8,1578.7,0.79814379]
[1674044853046,22.55657647,1578.8,1578.7,0.79419915]
[1674044854211,20.89721667,1578.8,1578.7,0.79419915]
[1674044855398,22.55657647,1578.8,1578.7,0.79419915]
[1674044855562,20.89721667,1578.8,1578.7,0.79419915]
[1674044855956,22.55657647,1578.8,1578.7,0.79419915]
[1674044856548,20.89721667,1578.8,1578.7,0.79419915]
[1674044860169,22.55657647,1578.8,1578.7,0.79419915]
[1674044860649,20.89721667,1578.8,1578.7,0.79419915]
[1674044861268,22.55657647,1578.8,1578.7,0.79419915]
[1674044862018,21.22929048,1578.8,1578.7,0.79419915]
[1674044863862,19.56993068,1578.8,1578.7,0.79419915]
[1674044869572,21.23124932,1578.8,1578.7,0.79419915]
[1674044871097,21.70644932,1578.8,1578.7,0.79419915]
[1674044873263,21.23124932,1578.8,1578.7,0.79419915]
[1674044874145,19.56993068,1578.8,1578.7,0.03438241]
[1674044874985,21.23087713,1578.8,1578.7,0.03438241]
[1674044879058,19.56993068,1578.8,1578.7,0.03438241]
[1674044879424,21.56508298,1578.8,1578.7,0.03438241]
[1674044880324,19.56993068,1578.8,1578.7,0.03438241]
[1674044880539,21.23058882,1578.8,1578.7,0.03438241]
[1674044881632,21.23060133,1578.8,1578.7,0.03438241]
[1674044888697,20.89900958,1578.8,1578.7,0.03438241]
[1674044894257,15.56187508,1578.8,1578.7,0.03438241]
[1674044895623,9.22795508,1578.8,1578.7,0.03438241]
[1674044897620,9.22795508,1578.8,1578.7,0.03157856]
[1674044897991,7.89887618,1578.8,1578.7,0.03157856]
[1674044898356,9.22795508,1578.8,1578.7,0.03157856]
[1674044901570,2.89403508,1578.8,1578.7,0.99857856]
[1674044901737,1.49895618,1578.8,1578.7,0.99857856]
[1674044901946,2.16322086,1578.8,1578.7,0.99857856]
[1674044902471,2.16322086,1578.8,1578.7,0.03157856]
[1674044903772,1.49895618,1578.8,1578.7,0.03157856]
[1674044905331,7.83287618,1578.8,1578.7,0.03157856]
[1674044905548,7.89887618,1578.8,1578.7,0.03157856]
[1674044906644,14.56508958,1578.8,1578.7,0.03157856]
[1674044908337,20.89900958,1578.8,1578.7,0.03157856]
[1674044910238,22.55968023,1578.8,1578.7,0.03157856]
[1674044910379,20.89900958,1578.8,1578.7,0.03157856]
[1674044911112,22.55968023,1578.8,1578.7,0.03157856]
[1674044912105,20.89900958,1578.8,1578.7,0.03157856]
[1674044914376,21.23060133,1578.8,1578.7,0.03157856]
[1674044917540,19.56993068,1578.8,1578.7,0.03157856]
[1674044918005,21.23100226,1578.8,1578.7,0.03157856]
[1674044918943,21.20863704,1578.8,1578.7,0.03157856]
[1674044922407,21.20863704,1578.8,1578.7,0.02908414]
[1674044924821,19.54756546,1578.8,1578.7,0.00136962]
[1674044925258,21.54271776,1578.8,1578.7,0.00136962]
[1674044925562,19.54756546,1578.8,1578.7,0.00136962]
[1674044926211,21.54271776,1578.8,1578.7,0.00136962]
[1674044928074,19.54756546,1578.8,1578.7,0.00136962]
[1674044928477,22.75071776,1578.8,1578.7,0.00136962]
[1674044929029,21.23076546,1578.8,1578.7,0.00136962]
[1674044930443,21.68345876,1578.8,1578.7,0.00136962]
[1674044930926,23.01197433,1578.8,1578.7,0.00136962]
[1674044931087,24.61603173,1578.8,1578.7,0.00136962]
[1674044931306,22.53677433,1578.8,1578.7,0.00136962]
[1674044932263,20.87608103,1578.8,1578.7,0.00136962]
[1674044935431,22.53677433,1578.8,1578.7,0.00136962]
[1674044936078,21.20825876,1578.8,1578.7,0.00136962]
[1674044937431,22.53686055,1578.8,1578.7,0.00136962]
[1674044938223,23.86556874,1578.8,1578.7,0.00136962]
[1674044942009,23.53384782,1578.8,1578.7,0.00136962]
[1674044944246,22.20487544,1578.8,1578.7,0.00136962]
[1674044944459,19.54756546,1578.8,1578.7,0.00136962]
[1674044945727,19.54470092,1578.8,1578.7,0.00136962]
[1674044946404,1.54255884,1578.8,1578.7,1.98836962]
[1674044946569,0.66447694,1578.8,1578.7,15.20584658]
[1674044946780,0.66447694,1578.8,1578.7,15.27184658]
[1674044947091,0.66447694,1578.8,1578.7,22.81416658]
[1674044949643,1.3290045,1578.9,1578.7,22.81416658]
[1674044949983,1.3290045,1578.9,1578.8,3.48941666]
[1674044950280,1.3290045,1578.9,1578.8,9.82333666]
[1674044950440,1.3290045,1578.9,1578.8,9.88933666]
[1674044950862,1.3290045,1578.9,1578.8,2.34741666]
[1674044951072,7.6625245,1578.9,1578.7,0.61620658]
[1674044951334,7.7285245,1578.9,1578.7,0.55020658]
[1674044951543,8.39210943,1578.9,1578.7,0.55020658]
[1674044951759,7.7285245,1578.9,1578.7,0.55020658]
[1674044952389,8.39195077,1578.9,1578.7,0.55020658]
[1674044954023,7.7285245,1578.9,1578.7,0.55020658]
[1674044954439,14.72535253,1578.9,1578.7,0.00136962]
[1674044954706,22.05424892,1578.9,1578.7,0.00136962]
[1674044955031,1.14056302,1578.8,1578.7,0.00136962]
[1674044955344,20.14232302,1578.8,1578.7,0.00136962]
[1674044955582,20.6855317,1578.8,1578.7,0.00136962]
[1674044956289,19.06776,1578.8,1578.7,0.00136962]
[1674044957854,20.06282078,1578.8,1578.7,0.00136962]
[1674044958078,19.06776,1578.8,1578.7,0.00136962]
[1674044960918,20.06282078,1578.8,1578.7,0.00136962]
[1674044961152,20.72625365,1578.8,1578.7,0.00136962]
[1674044961486,20.06282078,1578.8,1578.7,0.00136962]
[1674044961715,7.06333187,1578.8,1578.7,0.00136962]
[1674044961909,8.05839265,1578.8,1578.7,0.00136962]
[1674044962124,14.39231265,1578.8,1578.7,0.00136962]
[1674044962491,13.39725187,1578.8,1578.7,0.00136962]
[1674044963622,14.39231265,1578.8,1578.7,0.00136962]
[1674044964571,13.39725187,1578.8,1578.7,0.00136962]
[1674044966818,7.06333187,1578.8,1578.7,0.96836962]
[1674044967148,0.72941187,1578.8,1578.7,7.30268962]
[1674044967450,0.66341187,1578.9,1578.7,8.73240958]
[1674044967618,1.14080663,1578.9,1578.7,2.39808958]
[1674044967967,1.14080663,1578.9,1578.7,2.33208958]
[1674044968180,2.13586741,1578.9,1578.7,2.33208958]
[1674044968351,0.66341187,1578.9,1578.7,2.33208958]
[1674044968561,1.14078239,1578.9,1578.7,2.33208958]
[1674044969444,14.80289317,1578.9,1578.6,11.2398]
[1674044969653,14.39152265,1578.9,1578.6,11.2398]
[1674044970017,1.14079523,1578.8,1578.6,11.2398]
[1674044970261,14.39152265,1578.9,1578.6,11.2398]
[1674044971505,1.1407954,1578.8,1578.6,11.2398]
[1674044972382,13.33132187,1578.8,1578.6,11.2398]
[1674044972601,14.39238265,1578.8,1578.6,11.2398]
[1674044973130,13.39732187,1578.8,1578.6,11.2398]
[1674044973449,13.39732187,1578.8,1578.6,11.2378]
[1674044973768,2.13597382,1578.7,1578.6,0.066]
[1674044974072,23.01425414,1578.7,1578.5,1.00938217]
[1674044974233,21.14164702,1578.6,1578.5,1.00938217]
[1674044974441,21.20764702,1578.6,1578.5,1.00938217]
[1674044974654,21.94717223,1578.6,1578.5,1.00938217]
[1674044975396,21.28317789,1578.6,1578.5,1.00938217]
[1674044976852,22.60993342,1578.6,1578.5,1.00938217]
[1674044977627,21.28317789,1578.6,1578.5,1.00938217]
[1674044979593,23.28724191,1578.6,1578.5,1.00938217]
[1674044980014,23.61892398,1578.6,1578.5,0.06572363]
[1674044980226,24.94601006,1578.6,1578.5,0.06572363]
[1674044980439,24.94601842,1578.6,1578.5,0.06572363]
[1674044980635,23.61892398,1578.6,1578.5,0.06572363]
[1674044981928,28.81960881,1578.6,1578.5,0.06572363]
[1674044982097,31.24973084,1578.6,1578.5,0.06572363]
[1674044984045,30.05173084,1578.6,1578.5,0.06572363]
[1674044984714,39.61645084,1578.6,1578.5,0.00072363]
[1674044984903,1.05352314,1578.4,1578.3,0.02753694]
[1674044985119,33.35952797,1578.4,1578.3,0.02753694]
[1674044985458,36.14478837,1578.4,1578.3,0.02753694]
[1674044985778,42.33953992,1578.4,1578.3,0.02753694]
[1674044987532,43.66548837,1578.4,1578.3,0.02753694]
[1674044987753,42.33953992,1578.4,1578.3,0.02753694]
[1674044990205,42.56953992,1578.4,1578.3,0.02753694]
[1674044990350,42.33953992,1578.4,1578.3,0.02753694]
[1674044990561,43.00164495,1578.4,1578.3,0.02753694]
[1674044991085,42.00718786,1578.4,1578.3,0.02753694]
[1674044992343,40.77402719,1578.4,1578.3,0.02753694]
[1674044993558,40.02728572,1578.4,1578.3,0.02753694]
[1674044993709,41.76850513,1578.4,1578.3,0.02753694]
[1674044993914,41.98204804,1578.4,1578.3,0.02753694]
[1674044994547,41.50664804,1578.4,1578.3,0.02753694]
[1674044995336,37.18202397,1578.4,1578.3,0.02753694]
[1674045000924,42.49110513,1578.4,1578.3,0.00249695]
[1674045001239,42.96645501,1578.4,1578.3,0.00249695]
[1674045001758,41.97199792,1578.4,1578.3,0.00249695]
[1674045001974,42.96645501,1578.4,1578.3,0.00249695]
[1674045003010,41.97199792,1578.4,1578.3,0.00249695]
[1674045003180,42.96645501,1578.4,1578.3,0.00249695]
[1674045003390,42.49105501,1578.4,1578.3,0.00249695]
[1674045004039,42.49105501,1578.4,1578.3,0.48857311]
[1674045007819,41.82907625,1578.4,1578.3,0.48857311]
[1674045009439,42.49152804,1578.4,1578.3,0.48857311]
[1674045009601,41.82907625,1578.4,1578.3,0.48857311]
[1674045010075,34.30837625,1578.4,1578.3,0.48857311]
[1674045010855,30.11321935,1578.4,1578.3,0.48857311]
[1674045011069,30.86014188,1578.4,1578.3,0.48857311]
[1674045011714,31.85459897,1578.4,1578.3,0.48857311]
[1674045011934,31.85511032,1578.4,1578.3,0.48857311]
[1674045013233,30.83515927,1578.4,1578.3,0.48857311]
[1674045013536,28.58275534,1578.4,1578.3,0.48857311]
[1674045013709,29.24724638,1578.4,1578.3,0.48857311]
[1674045013917,26.84124638,1578.4,1578.3,0.48857311]
[1674045017478,27.8375597,1578.4,1578.3,0.48857311]
[1674045017726,26.84124638,1578.4,1578.3,0.48857311]
[1674045018111,21.39704456,1578.4,1578.3,0.48857311]
[1674045018320,20.06923049,1578.4,1578.3,0.48857311]
[1674045021791,19.07256,1578.4,1578.3,0.48857311]
[1674045024011,19.07256,1578.4,1578.3,0.48487782]
[1674045026323,6.40152,1578.4,1578.3,0.48487782]
[1674045027248,7.06582593,1578.4,1578.3,0.48487782]
[1674045027418,6.40152,1578.4,1578.3,0.48487782]
[1674045028100,12.73704,1578.4,1578.3,0.48487782]
[1674045028432,13.40135834,1578.4,1578.3,0.48487782]
[1674045029415,12.73704,1578.4,1578.3,0.48487782]
[1674045030471,13.40134819,1578.4,1578.3,0.48487782]
[1674045031516,7.06582819,1578.4,1578.3,0.48487782]
[1674045034545,7.06582819,1578.4,1578.3,0.48487782]
[1674045036713,13.73349247,1578.4,1578.3,0.48487782]
[1674045038247,20.06901247,1578.4,1578.3,0.48487782]
[1674045039914,21.39682654,1578.4,1578.3,0.48487782]
[1674045045392,20.40037407,1578.4,1578.3,0.48487782]
[1674045046417,20.40037407,1578.4,1578.3,0.48241828]
[1674045051319,22.06130367,1578.4,1578.3,0.48241828]
[1674045052005,20.7334896,1578.4,1578.3,0.48241828]
[1674045052318,22.06060655,1578.4,1578.3,0.48241828]
[1674045058628,20.39967695,1578.4,1578.3,0.48241828]
[1674045060349,22.06060655,1578.4,1578.3,0.48241828]
[1674045060711,20.39967695,1578.4,1578.3,0.48241828]
[1674045061879,20.39967695,1578.4,1578.3,0.25970668]
[1674045062097,22.06060655,1578.4,1578.3,0.25970668]
[1674045063653,20.39967695,1578.4,1578.3,0.25970668]
[1674045064780,14.06415695,1578.4,1578.3,0.25970668]
[1674045065653,20.39967695,1578.4,1578.3,0.25970668]
[1674045068387,15.06153105,1578.4,1578.3,0.25970668]
[1674045068664,7.72863695,1578.4,1578.3,0.25970668]
[1674045069012,8.72601084,1578.4,1578.3,0.25970668]
[1674045069218,7.39620291,1578.4,1578.3,0.25970668]
[1674045070833,1.06337389,1578.4,1578.3,0.25970668]
[1674045071005,1.66224166,1578.4,1578.3,0.25970668]
[1674045071453,0.66486777,1578.4,1578.3,0.25970668]
[1674045071678,0.66486777,1578.4,1578.3,1.55949535]
[1674045072641,0.66486777,1578.4,1578.3,1.77495908]
[1674045072854,0.66486777,1578.4,1578.3,8.11088908]
[1674045073067,0.66486777,1578.4,1578.3,8.17688908]
[1674045073269,0.66486777,1578.4,1578.3,1.84095908]
[1674045073515,0.66486777,1578.4,1578.3,1.77495908]
[1674045074990,0.66486777,1578.4,1578.3,8.11088908]
[1674045075208,2.28724166,1578.5,1578.3,8.17688908]
[1674045075420,1.28986777,1578.5,1578.4,0.81768891]
[1674045075573,1.73928759,1578.5,1578.4,0.81768891]
[1674045076670,1.73928759,1578.5,1578.3,14.29735535]
[1674045079767,1.73928759,1578.5,1578.3,7.96142535]
[1674045080123,0.625,1578.5,1578.3,7.96142535]
[1674045082292,0.625,1578.5,1578.3,6.66163668]
[1674045082767,0.625,1578.5,1578.3,0.32570668]
[1674045083086,13.29527,1578.5,1578.3,0.25970668]
[1674045083398,13.36127,1578.5,1578.3,0.25970668]
[1674045087038,1.11628479,1578.4,1578.3,0.25970668]
[1674045094282,2.11265626,1578.4,1578.3,0.25970668]
[1674045095325,8.44817626,1578.4,1578.3,0.25970668]
[1674045095534,8.51417626,1578.4,1578.3,0.25970668]
[1674045096201,7.84992861,1578.4,1578.3,0.25970668]
[1674045096604,8.51439169,1578.4,1578.3,0.25970668]
[1674045096835,7.84992861,1578.4,1578.3,0.25970668]
[1674045097044,8.51439177,1578.4,1578.3,0.25970668]
[1674045097235,8.51444628,1578.4,1578.3,0.25970668]
[1674045097444,7.84992861,1578.4,1578.3,0.25970668]
[1674045100522,9.92918601,1578.4,1578.3,0.25970668]
[1674045100699,14.18544861,1578.4,1578.3,0.25970668]
[1674045100910,14.18544861,1578.4,1578.3,0.25736082]
[1674045102159,21.8494639,1578.4,1578.3,0.25736082]
[1674045111447,21.8494639,1578.4,1578.3,0.02279441]
[1674045111448,19.52459714,1578.4,1578.3,0.02279441]
[1674045112326,21.18640807,1578.4,1578.3,0.02279441]
[1674045114017,22.39440807,1578.4,1578.3,0.02279441]
[1674045114859,22.06161298,1578.4,1578.3,0.02279441]
[1674045115435,23.72342391,1578.4,1578.3,0.02279441]
[1674045115754,22.06161298,1578.4,1578.3,0.02279441]
[1674045117782,23.72342391,1578.4,1578.3,0.02279441]
[1674045117990,22.06161298,1578.4,1578.3,0.02279441]
[1674045118948,22.39390852,1578.4,1578.3,0.02279441]
[1674045120476,20.73259714,1578.4,1578.3,0.02279441]
[1674045121140,24.40874008,1578.4,1578.3,0.02279441]
[1674045121653,25.15974267,1578.4,1578.3,0.02279441]
[1674045122836,28.27636674,1578.4,1578.3,0.02279441]
[1674045124533,26.2836238,1578.4,1578.3,0.02279441]
[1674045126370,26.2836238,1578.4,1578.3,0.0022808]
[1674045126597,27.943975,1578.4,1578.3,0.0022808]
[1674045128837,26.2836238,1578.4,1578.3,0.0022808]
[1674045129024,29.48436674,1578.4,1578.3,0.0022808]
[1674045129289,29.48436674,1578.4,1578.3,0.00015296]
[1674045132601,40.77058302,1578.4,1578.3,0.00015296]
[1674045132814,40.77058302,1578.4,1578.1,0.05517601]
[1674045132815,1.02184704,1578.2,1578.1,0.05517601]
[1674045133070,10.22957049,1578.2,1578.1,0.05517601]
[1674045133228,36.09292763,1578.2,1578.1,0.05517601]
[1674045133442,39.84393022,1578.2,1578.1,0.05517601]
[1674045134277,40.07393022,1578.2,1578.1,0.05517601]
[1674045134492,40.71067195,1578.2,1578.1,0.05517601]
[1674045135162,38.71897257,1578.2,1578.1,0.05517601]
[1674045136006,43.71897257,1578.2,1578.1,0.05517601]
[1674045137115,44.73998998,1578.2,1578.1,0.05517601]
[1674045138128,39.85814583,1578.2,1578.1,0.05517601]
[1674045138431,39.38274583,1578.2,1578.1,0.05517601]
[1674045138648,39.85814583,1578.2,1578.1,0.05517601]
[1674045141186,38.53198998,1578.2,1578.1,0.05517601]
[1674045141394,39.85810918,1578.2,1578.1,0.00569202]
[1674045143396,38.198503,1578.2,1578.1,0.00569202]
[1674045143967,39.85626214,1578.2,1578.1,0.00569202]
[1674045144182,38.198503,1578.2,1578.1,0.00569202]
[1674045144643,37.723103,1578.2,1578.1,0.00569202]
[1674045144855,37.493103,1578.2,1578.1,0.00569202]
[1674045146203,34.493103,1578.2,1578.1,0.00569202]
[1674045147180,36.15086214,1578.2,1578.1,0.00569202]
[1674045147761,34.82474294,1578.2,1578.1,0.00569202]
[1674045148525,36.15133052,1578.2,1578.1,0.00569202]
[1674045148739,34.82474294,1578.2,1578.1,0.00569202]
[1674045151035,35.30014294,1578.2,1578.1,0.00569202]
[1674045153184,34.82474294,1578.2,1578.1,0.00569202]
[1674045153359,33.61674294,1578.2,1578.1,0.00569202]
[1674045155476,33.92464948,1578.2,1578.1,0.00569202]
[1674045155688,33.92464948,1578.2,1578.1,0.97269202]
[1674045155689,21.60593627,1578.2,1578.1,0.97269202]
[1674045155899,20.85493368,1578.2,1578.1,0.97269202]
[1674045156095,21.85082232,1578.2,1578.1,0.97269202]
[1674045156513,14.18658578,1578.2,1578.1,0.97269202]
[1674045157160,15.51449232,1578.2,1578.1,0.97269202]
[1674045158221,8.5143698,1578.2,1578.1,0.97269202]
[1674045159073,7.85025578,1578.2,1578.1,0.97269202]
[1674045159455,1.51392578,1578.2,1578.1,1.07585868]
[1674045159671,1.11618377,1578.2,1578.1,1.07585868]
[1674045162080,2.11207241,1578.2,1578.1,0.97269202]
[1674045162606,1.11618377,1578.2,1578.1,0.97269202]
[1674045162828,2.11207241,1578.2,1578.1,0.97269202]
[1674045163289,1.11618377,1578.2,1578.1,0.97269202]
[1674045163823,2.11207241,1578.2,1578.1,0.97269202]
[1674045165263,1.11618377,1578.2,1578.1,0.97269202]
[1674045165566,1.11618377,1578.2,1578.1,0.96956635]
[1674045165814,8.44840241,1578.2,1578.1,0.96956635]
[1674045166024,8.51440241,1578.2,1578.1,0.00256635]
[1674045166235,8.51440241,1578.2,1578.1,0.96956635]
[1674045167191,7.85025578,1578.2,1578.1,0.00256635]
[1674045168762,8.51419725,1578.2,1578.1,0.00256635]
[1674045168916,8.51419725,1578.2,1578.1,0.96956635]
[1674045169599,8.51419725,1578.2,1578.1,0.00256635]
[1674045172189,7.51830861,1578.2,1578.1,0.00256635]
[1674045172376,8.51408924,1578.2,1578.1,0.00256635]
[1674045173387,7.85025578,1578.2,1578.1,0.00256635]
[1674045173702,14.18658578,1578.2,1578.1,0.00256635]
[1674045174639,15.51449232,1578.2,1578.1,0.00256635]
[1674045174826,14.18658578,1578.2,1578.1,0.00256635]
[1674045175251,21.85082232,1578.2,1578.1,0.00256635]
[1674045175667,20.85493368,1578.2,1578.1,0.00256635]
[1674045175902,22.51269282,1578.2,1578.1,0.00256635]
[1674045176432,20.85493368,1578.2,1578.1,0.00256635]
[1674045176836,22.51269282,1578.2,1578.1,0.00256635]
[1674045177252,21.18478628,1578.2,1578.1,0.00256635]
[1674045183842,22.49563086,1578.2,1578.1,0.00256635]
[1674045184526,20.83787172,1578.2,1578.1,0.00256635]
[1674045186442,21.16706679,1578.2,1578.1,0.00256635]
[1674045186653,22.4956987,1578.2,1578.1,0.00256635]
[1674045187760,21.16706679,1578.2,1578.1,0.00256635]
[1674045189489,21.16706679,1578.2,1578.1,5.902e-05]
[1674045191965,22.49625264,1578.2,1578.1,5.902e-05]
[1674045192750,16.15992264,1578.2,1578.1,5.902e-05]
[1674045194028,14.5021635,1578.2,1578.1,5.902e-05]
[1674045195331,14.5021635,1578.2,1578.1,0.96705902]
[1674045196688,14.5021635,1578.2,1578.1,5.902e-05]
[1674045201446,16.15992264,1578.2,1578.1,5.902e-05]
[1674045202019,16.16038718,1578.2,1578.1,5.902e-05]
[1674045205860,14.50262804,1578.2,1578.1,5.902e-05]
[1674045206077,16.16038718,1578.2,1578.1,5.902e-05]
[1674045208957,14.83073679,1578.2,1578.1,5.902e-05]
[1674045210056,0.00234417,1578.1,1578.0,0.05897457]
[1674045210386,2.76401998,1578.1,1578.0,0.05897457]
[1674045214581,9.10074998,1578.1,1578.0,0.05897457]
[1674045214898,9.16674998,1578.1,1578.0,0.05897457]
[1674045215114,9.1644511,1578.1,1578.0,0.05897457]
[1674045221516,8.16701189,1578.1,1578.0,0.05897457]
[1674045227682,14.50374189,1578.1,1578.0,0.05897457]
[1674045228983,20.84047189,1578.1,1578.0,0.05897457]